{"text_format":"2","workbook":"xlsx","n_sheets":2,"sheets":["Záradék","Anyaglista"],"not_rendered":{"charts":0,"images":0,"macros":0,"external_links":0,"defined_names":2,"comments":0,"pivot_tables":0},"unopened":[],"bounds":{"document_bytes":16777216,"sheet_cells":100000,"run_cost":"one","rows_first":2000,"rows_last":500,"rows_between":2000,"halvings":0,"cell_chars":16384,"cell_head_chars":4096},"cells_cut":0,"cells_raw":0,"read":"whole","date_system":"1900"}

{"sheet":"Záradék","index":0,"n_rows":28,"n_cols":3,"rows_kept":28,"cut":false,"hidden":false,"merged":[[0,0,0,2],[18,0,18,2],[27,1,27,2],[5,0,5,1],[7,0,7,1],[8,0,8,1],[9,0,9,1],[10,0,10,1]]}
["SZEGEDI TUDOMÁNYEGYETEM"]
["Műszaki Igazgatóság                    "]
["Klinikai Üzemeltetési Iroda            "]
["6725 Szeged, Tisza Lajos krt. 107.     "]
[]
["Készítette:"]
[]
["Cégnév"]
["Székhely"]
["Kapcsolattartó"]
["Elérhetőség"]
["                                       ",null,"                                       "]
["A munka leírása:                       ",null,"                                       "]
["Műszaki anyag beszerzés"]
["                                                                              "]
["Készült:                                                                      "]
["                                                                              "]
[]
["Költségvetés főösszesítő"]
["Megnevezés",null,"Anyagköltség"]
["1. Anyagköltség",null,{"$f":"Anyaglista!F121","v":0}]
["2.1 ÁFA vetítési alap",null,{"$f":"C21","v":0}]
["2.2 Áfa",0.27,{"$f":"ROUND(C22*B23,0)","v":0}]
["3. Összesen",null,{"$f":"C22+C23","v":0}]
[]
[]
[]
[null,"Aláírás"]

{"sheet":"Anyaglista","index":1,"n_rows":121,"n_cols":6,"rows_kept":121,"cut":false,"hidden":false,"merged":[[0,0,0,5]]}
["Az ajánlattevőnek a kért tételek minimum 90%-át tudnia kell szállítani az érvényes ajánlathoz!"]
[]
["Sorszám","Megnevezés","Mértékegység","Mennyiség","Egység ár (nettó)","Összesen (nettó)"]
[1,"DM300049 Szilikon spray","DB Darab",10,null,{"$f":"D4*E4","v":0}]
[2,"DM300050 Spray festék, matt fekete 400 ml","DB Darab",5,null,{"$f":"D5*E5","v":0}]
[3,"DM300060 Kétoldalas ragasztó szalag","DB Darab",20,null,0]
[4,"DM300061 Uverapid ragasztó","DB Darab",10,null,0]
[5,"DM300111 Bútor kivetőpánt","DB Darab",20,null,0]
[6,"DM300114 Ajtó kilincs","PÁR Pár",50,null,0]
[7,"DM300121 Ajtózárbetét 3 kulcsos","DB Darab",50,null,0]
[8,"DM300252 Polctartó, 5mm stift","DB Darab",50,null,0]
[9,"DM300253 Bútorkerék","DB Darab",50,null,0]
[10,"DM300255 Áttoló karmantyú, 50 mm","DB Darab",2,null,0]
[11,"DM300261 Ág PVC 50/32","DB Darab",10,null,0]
[12,"DM300307 Könyök KB 1\"","DB Darab",10,null,0]
[13,"DM300310 Könyök KB 3/4\"","DB Darab",10,null,0]
[14,"DM300331 Szűkítő KB 3/4\"-1/2\"","DB Darab",10,null,0]
[15,"DM300346 Vakdugó 1/2\"","DB Darab",20,null,0]
[16,"DM300348 Csempeszelep 1/2\"","DB Darab",10,null,0]
[17,"DM300351 Sarokszelep 3/8\"","DB Darab",30,null,0]
[18,"DM300374 WC gumi karmantyú gégecsöves","DB Darab",10,null,0]
[19,"DM300380 WC tartály","DB Darab",15,null,0]
[20,"DM300383 WC ülőke","DB Darab",40,null,0]
[21,"DM300410 Vízcsapgomb több tipus ( meleg, ricnis)","DB Darab",10,null,0]
[22,"DM300410 Vízcsapgomb több tipus ( hideg, ricnis)","DB Darab",10,null,0]
[23,"DM300412 Vízcsapgomb betét","DB Darab",8,null,0]
[24,"DM300415 Vízcsap betét 1/2\"","DB Darab",5,null,0]
[25,"DM300796 Ht.dugvilla","DB Darab",5,null,0]
[26,"DM300811 PE opál búra, Rábalux Grace 2431","DB Darab",4,null,0]
[27,"DM300819 Elosztó doboz fedél 80-as","DB Darab",17,null,0]
[28,"DM300827 Fénycső kompakt 15w E27","DB Darab",50,null,0]
[29,"DM300858 Biztosíték automata 16A","DB Darab",40,null,0]
[30,"DM300895 Ht. kapcsoló egy ák. betét","DB Darab",10,null,0]
[31,"DM300896 Ht. kapcsoló csillár betét","DB Darab",10,null,0]
[32,"DM300902 Tükör rögzítő","CSOMAG Csomag",5,null,0]
[33,"DM300948 Vágókorong 125mm","DB Darab",40,null,0]
[34,"DM300954 Ajtózár dose","DB Darab",4,null,0]
[35,"DM300958 Ajtózár lővér biztonsági","DB Darab",7,null,0]
[36,"DM300959 Ajtózár lővér normál","DB Darab",7,null,0]
[37,"DM301031 Ajtó szellőzőrács","DB Darab",5,null,0]
[38,"DM301035 Vágó-fúró spray","DB Darab",2,null,0]
[39,"DM301038 Csiszoló korong 115","DB Darab",40,null,0]
[40,"DM301070 Tűzőkapocs ipari","DOB Doboz",15,null,0]
[41,"DM301097 Facsavar 4x16","DB Darab",2000,null,0]
[42,"DM301116 Dugalj egyes süllyesztett","DB Darab",40,null,0]
[43,"DM301131 Hegesztő elektróda rozsdamentes","KG Kilogramm",5,null,0]
[44,"DM301195 Rúdzár, Elga C-112","DB Darab",15,null,0]
[45,"DM301206 WD 40 spray (multispray)","DB Darab",10,null,0]
[46,"DM301223 Hegesztő elektróda 2,5","KG Kilogramm",5,null,0]
[47,"DM301233 Tömítés csaptelephez","DB Darab",200,null,0]
[48,"DM301248 Palmatex ragasztó 0,8","DB Darab",10,null,0]
[49,"DM301303 Csavarlazító spray","DB Darab",5,null,0]
[50,"DM301326 Palmafa ragasztó","DB Darab",5,null,0]
[51,"DM301384 Automata légtelenítő","DB Darab",5,null,0]
[52,"DM302372 Dekopír él","DB Darab",5,null,0]
[53,"DM302388 Vízmentes dugalj IP44","DB Darab",40,null,0]
[54,"DM302390 Bútor fogantyú","DB Darab",7,null,0]
[55,"DM302417 WC Geberit töltő szelep","DB Darab",10,null,0]
[56,"DM302665 Ajtófék","DB Darab",6,null,0]
[57,"DM302844 Ajtó címer 55-ös","DB Darab",2,null,0]
[58,"DM302920 Műgyanta","DOB Doboz",1,null,0]
[59,"DM302948 PVC Ragasztó","DB Darab",2,null,0]
[60,"DM303001 Led fénycső, 600 mm 9W","DB Darab",50,null,0]
[61,"DM303080 Csiszoló korong 125","DB Darab",40,null,0]
[62,"DM303099 Izzó GU10 LED 5W","DB Darab",50,null,0]
[63,"DM303159 Reluxa zsinor","M Méter",30,null,0]
[64,"DM303228 Izzó led E-27 10 W","DB Darab",50,null,0]
[65,"DM303251 WC dömötör töltőszelep","DB Darab",10,null,0]
[66,"DM303597 Gázrugó GP10-3-12-600-40","DB Darab",5,null,{"$f":"D69*E69","v":0}]
[67,"DM303609 Ht. kapcsoló alter. betét","DB Darab",5,null,0]
[68,"DM303906 Mozgásérzékelő 180'","DB Darab",5,null,0]
[69,"DM304108 Ht. kapcsoló 2ák.betét","DB Darab",5,null,0]
[70,"DM304212 Led fénycső 1500mm 19 W","DB Darab",40,null,0]
[71,"DM304214 Led fénycső 9-16W","DB Darab",40,null,0]
[72,"DM304452 Biztosíték automata C13A","DB Darab",40,null,0]
[73,"DM304498 Ajtózár dose biztonsági 3420","DB Darab",25,null,0]
[74,"DM304499 Ajtó címer biztonsági 74/90","DB Darab",25,null,0]
[75,"TH 16-1/2\" átalakító belső menet","DB Darab",5,null,0]
[76,"TH 16-1/2\" átalakító külső menet","DB Darab",5,null,0]
[77,"TH 16 falikorong","DB Darab",25,null,0]
[78,"ötrétegű szigetelt 16 cső","M méter",100,null,0]
[79,"Saválló lemez 102x50 cm, 1mm","DB Darab",1,null,0]
[80,"Horganyzott facsavar süllyeszetett 4x20","DB Darab",2000,null,0]
[81,"Body F220 Bodyfine kitt","DB Darab",2,null,0]
[82,"nitrohigító","L Liter",2,null,0]
[83,"csiszolóvászon P120","Í Ív",10,null,0]
[84,"lakkhenger","DB Darab",5,null,0]
[85,"Ecset 2\"","DB Darab",2,null,0]
[86,"Csemperagasztó - kültéri 5kg","DB Darab",1,null,0]
[87,"Kültéri glett 5kg","DB Darab",1,null,0]
[88,"Vízbázisú selyemfényű zománc sötét barna 1L","DB Darab",2,null,0]
[89,"Soudal montage fix szerkezeti ragasztó","DB Darab",2,null,0]
[90,"054365 csz. 2P+F Legrand Dugvilla","DB Darab",30,null,0]
[91,"lengődugalj  50317","DB Darab",30,null,0]
[92,"kapcsolós dugvilla GAO 0108","DB Darab",10,null,0]
[93,"Dupla süllyesztett dugalj 2x2p+f (Schneider Asfora v. Legrand Niole+keret) fehér EPH 9900121","DB Darab",10,null,0]
[94,"Szimpla dugalj süllyesztett  2p+f(Schneider Asfora v. Legrand Niole+keret) fehér EPH 2900121","DB Darab",10,null,0]
[95,"Szimpla dugalj süllyesztett  2p+f csapfedeles EPH 3100121","DB Darab",10,null,0]
[96,"Szimpla dugalj csapfedeles IP védett EPH 3100321","DB Darab",20,null,0]
[97,"3x2,5mm2-es MMcu vezeték","M Méter",100,null,0]
[98,"3x1,5mm2-es Mmcu vezeték ","M Méter",100,null,0]
[99,"3x1,5 fehér (100) 300/500V hajlékony tömlővezeték (MT)","M Méter",100,null,0]
[100,"3x2,5 fehér (100) 300/500V hajlékony tömlővezeték (MT)","M Méter",100,null,0]
[101,"Érvéghüvely 1,5mm2-es ","DB Darab",500,null,0]
[102,"Érvéghüvely 2,5mm2-es ","DB Darab",500,null,0]
[103,"Érvéghüvely 4mm2-es ","DB Darab",300,null,0]
[104,"Érvéghüvely 10mm2-es ","DB Darab",100,null,0]
[105,"6-os tipli csavarral TÖPCS6    ","DB Darab",100,null,0]
[106,"8-as tipli csavarral TÖPCS8  ","DB Darab",100,null,0]
[107,"Wago 5-ös  WAGO 2273205","DB Darab",100,null,0]
[108,"Wago 4-as  WAGO 2273204 ","DB Darab",100,null,0]
[109,"Wago 3-as  WAGO 2273203 ","DB Darab",100,null,0]
[110,"Wago 2-as  WAGO 2273202 ","DB Darab",100,null,0]
[111,"Szigetelő szalag kék","DB Darab",10,null,0]
[112,"Szigetelő szalag fekete","DB Darab",10,null,0]
[113,"Szigetelő szalag fehér","DB Darab",10,null,0]
[114,"Szigetelő szalag z-s","DB Darab",10,null,0]
[115,"Spray festék, matt fehér 400 ml","DB Darab",5,null,0]
[116,"ablak rúdzár szett, Bascule Zár Szett","DB Darab",10,null,0]
[117,"Ferro Basic Álló Mosdó Csaptelep BBC2","DB Darab",2,null,0]
[{"$nulls":4},"Összesen:",{"$f":"SUM(F4:F120)","v":0}]